Cogmind - Beta 14 @@@ ROGUE MODE // 2025.03.02 @ 17:32:06 Player: Scringis Result: Self-destructed Performance ------------- Evolutions (2) 1000 Regions Visited (4) 800 Robots Destroyed (29) 145 Value Destroyed (1085) 1085 Prototype IDs (4) 80 Alien Tech Used (0) 0 Bonus (272) 272 TOTAL SCORE: 3382 Bonus ------- Pacifist 200 Follower Combat Kills 72 Cogmind --------- Core Integrity 440/550 Matter 4/300 Energy 135/150 System Corruption 0% Temperature Cool (0) Movement Walking (270) Ox2 Location -8/Materials Parts ------- > --- POWER (1) -------- Light Angular Momentum Engine > --- PROPULSION (2) --- VSS Leg > --- UTILITY (4) ------ Improved Cooling System Large Storage Unit Core Shielding Hacking Suite > --- WEAPON (4) ------- (None) > --- INVENTORY (15) --- Hardened Medium Armor Plating Reactive Plating Advanced Beam Cannon Advanced Beam Cannon High-powered Shotgun High-powered Shotgun High-powered Shotgun Improved Grenade Launcher Improved Grenade Launcher Remote Datajack Peak State ------------ > --- POWER ------------ Light Angular Momentum Engine > --- PROPULSION ------- Titanium Leg VSS Leg > --- UTILITY ---------- Improved Cooling System Large Storage Unit Core Shielding Hacking Suite > --- WEAPON ----------- Advanced Beam Cannon Advanced Beam Cannon Advanced Beam Cannon > --- INVENTORY -------- Hardened Medium Armor Plating Reactive Plating High-powered Shotgun High-powered Shotgun Improved Grenade Launcher Improved Grenade Launcher Remote Datajack [Rating: 31] Favorites ----------- Power Light Ion Engine Engine Light Ion Engine Power Core Micro Nuclear Core Propulsion Light Treads Treads Light Treads Leg VSS Leg Utility Large Storage Unit Device Improved Cooling System Storage Large Storage Unit Hackware Hacking Suite Protection Core Shielding Weapon Advanced Beam Cannon Energy Gun EM Pulse Gun Energy Cannon Advanced Beam Cannon Ballistic Gun High-powered Shotgun Launcher Improved Grenade Launcher Build | -11 -10 -9 -9 -8 ------- Run | Yrd Mat Mat Min Mat Slots Evolved 4 | . . 2 . 2 Power . | . . . . . Propulsion . | . . . . . Utility 2 | . . 1 . 1 Weapon 2 | . . 1 . 1 Parts Attached 38 | 6 . 4 4 24 Power 4 | 1 . . 2 1 Engine 3 | 1 . . 1 1 Core 1 | . . . 1 . Reactor . | . . . . . Propulsion 6 | 2 . . . 4 Treads 4 | 2 . . . 2 Leg 2 | . . . . 2 Wheel . | . . . . . Hover . | . . . . . Flight . | . . . . . Utility 5 | 1 . 1 2 1 Device 1 | . . . 1 . Storage 2 | 1 . 1 . . Processor . | . . . . . Hackware 1 | . . . . 1 Protection 1 | . . . 1 . Artifact . | . . . . . Weapon 23 | 2 . 3 . 18 Energy Gun 3 | 2 . 1 . . Energy Cannon 8 | . . 2 . 6 Ballistic Gun 8 | . . . . 8 Ballistic Cannon . | . . . . . Launcher 4 | . . . . 4 Special Weapon . | . . . . . Impact Weapon . | . . . . . Slashing Weapon . | . . . . . Piercing Weapon . | . . . . . Special Melee Weapon . | . . . . . Unidentified Prototypes 2 | . . 2 . . Parts Lost 10 | . . . 1 9 Power 2 | . . . 1 1 Propulsion 4 | . . . . 4 Utility . | . . . . . Weapon 4 | . . . . 4 Highest Loss Streak 5 | . . . 1 5 To Critical Strikes . | . . . . . Average Slot Usage (%) 82 | . 85 74 88 79 Engine 6 | . 14 11 5 2 Core 4 | . . . 5 6 Treads 19 | . 28 22 22 12 Device 4 | . . . 5 9 Storage 10 | . 14 11 11 9 Hackware 2 | . . . . 8 Protection 5 | . . . 6 9 Energy Gun 9 | . 28 14 11 1 Energy Cannon 17 | . . 16 22 13 Ballistic Gun 1 | . . . . 4 Peak Build Rating 31 | 6 6 12 21 31 Average Rating 16 | 3 6 10 16 24 On Entrance 9 | . 6 6 12 21 Naked Turns . | . . . . . Heaviest Build 51 | 12 12 33 39 51 Greatest Support 40 | 40 40 40 40 40 Greatest Overweight (x) 10 | . . . . 10 Average Overweight (x) . | . . . . . Largest Inventory Capacity 15 | 8 8 15 15 15 Average Capacity 13 | 6 8 12 15 15 Most Carried 12 | 5 2 8 10 12 Average Carried 7 | 1 1 5 8 9 Final Capacity 15 | 8 8 15 15 15 Final Carried 10 | 1 2 8 9 10 Class Distribution -------------------- 41% | Tank 35% | Gunner 22% | Mutant Dominant Class ---------------- Mutant | -10/Materials Gunner | -9/Materials Tank | -9/Mines Tank | -8/Materials Resources | -11 -10 -9 -9 -8 ----------- Run | Yrd Mat Mat Min Mat Matter Collected 569 | 260 . 40 107 162 Remotely . | . . . . . Salvage Created 1026 | . . 172 216 638 Parts 45 | . . 7 18 20 Haulers Intercepted 1 | . . 1 . . Recyclers Shooed . | . . . . . Parts Field Recycled . | . . . . . Retrieved Matter . | . . . . . Parts Self-Destructed . | . . . . . Prevented . | . . . . . Kills | -11 -10 -9 -9 -8 ------- Run | Yrd Mat Mat Min Mat Combat Hostiles Destroyed 26 | . . 2 9 15 Guns 7 | . . 1 2 4 Cannons 13 | . . . 7 6 AOE 4 | . . . . 4 Classes Destroyed 10 | . . 2 5 3 Worker 1 | . . . . 1 Tunneler 1 | . . . 1 . Hauler 1 | . . 1 . . Swarmer 5 | . . . 5 . Grunt 11 | . . . 2 9 Duelist 3 | . . . 1 2 Sentry 3 | . . 2 . 1 Demolisher 1 | . . . 1 . Specialist 2 | . . . . 2 Heavy 1 | . . . . 1 Best Kill Streak 4 | . . 1 4 4 Combat Bots Only 4 | . . 1 4 4 Max Kills in Single Turn 3 | . . 1 1 3 Gunslinging . | . . . . . Exploded 3 | . . . . 3 Melee . | . . . . . Uniques/NPCs Destroyed . | . . . . . Combat | -11 -10 -9 -9 -8 -------- Run | Yrd Mat Mat Min Mat Hostile Shots Fired 97 | . . 6 33 58 Missed 25 | . . 2 6 17 Damage Taken 1597 | . . 59 516 1022 Core 194 | . . 14 70 110 Absorbed by Shields . | . . . . . Redirected to Shielding 15 | . . . 1 14 Core Remaining (%) 93 | 100 100 . 79 . Volleys Fired 58 | . . 15 14 29 Largest 4 | . . 3 3 4 Hottest 176 | . . 176 176 161 Shots Fired 151 | . . 34 42 75 Gun 65 | . . 32 14 19 Cannon 69 | . . 2 28 39 Launcher 17 | . . . . 17 Special . | . . . . . Kinetic 19 | . . . . 19 Thermal 72 | . . 5 28 39 Explosive 14 | . . . . 14 Electromagnetic 46 | . . 29 14 3 Robot Hit Streak 16 | . . 7 5 16 Robot Miss Streak 7 | . . 7 2 3 Penetration Max . | . . . . . Secondary Targets . | . . . . . Shots Hit Robots 89 | . . 17 19 53 Core Hits 49 | . . 4 12 33 Critical Kills 2 | . . 1 . 1 Critical Parts Destroyed . | . . . . . Critical Strikes 3 | . . 1 1 1 Meltdown 2 | . . 1 . 1 Corrupt 1 | . . . 1 . Melee Attacks . | . . . . . Impact . | . . . . . Slashing . | . . . . . Piercing . | . . . . . Sneak Attacks . | . . . . . Combat Hostiles . | . . . . . Follow-up Attacks . | . . . . . Damage Inflicted 2286 | . . 275 442 1569 Guns 525 | . . 207 93 225 Cannons 882 | . . 21 286 575 Explosions 847 | . . 47 31 769 Melee . | . . . . . Ramming 32 | . . . 32 . Kinetic 225 | . . . . 225 Thermal 1034 | . . 100 317 617 Explosive 620 | . . . . 620 Electromagnetic 375 | . . 175 93 107 Impact . | . . . . . Slashing . | . . . . . Piercing . | . . . . . Highest Corruption . | . . . . . Average Corruption . | . . . . . Corruption Purged . | . . . . . Corruption Blocked . | . . . . . Overload Shots . | . . . . . Overflow Damage 99 | . . . 1 98 Projectiles 23 | . . . . 23 Explosions 76 | . . . 1 75 Melee . | . . . . . Knockbacks 2 | . . . 2 . Impact 1 | . . . 1 . Kinetic . | . . . . . Secondary 1 | . . . 1 . Self-Inflicted Damage 131 | . . . . 131 Shots 2 | . . . . 2 Rammed 4 | . . . 4 . Targets Rammed 5 | . . . 5 . Kicked . | . . . . . Crushed 1 | . . . 1 . Highest Temperature 397 | . . 193 397 36 Average Temperature 105 | . . 52 165 10 Received Heat Transfer 255 | . . 18 30 207 Effects 1 | . . . 1 . Matter Decay 1 | . . . 1 . Siege Activations . | . . . . . Robots Corrupted . | . . . . . Combat Hostiles . | . . . . . Parts Fried 1 | . . 1 . . Impact Corruptions . | . . . . . Robots Melted 2 | . . 1 . 1 Combat Hostiles 2 | . . 1 . 1 Parts Melted 3 | . . 1 . 2 Heat Transferred 1865 | . . 161 618 1086 Parts Sabotaged . | . . . . . Parts Stolen . | . . . . . Parts Stripped . | . . . . . Power Chain Reactions 3 | . . 1 2 . Alert | -11 -10 -9 -9 -8 ------- Run | Yrd Mat Mat Min Mat Peak Influence 287 | . . 117 183 287 Initial 2 | . . . . 2 Average 70 | . . 55 48 135 Maximum Alert Level 1 | . . . . 1 Low Security (%) 96 | 100 100 100 100 87 Level 1 3 | . . . . 12 Level 2 . | . . . . . Level 3 . | . . . . . Level 4 . | . . . . . Level 5 . | . . . . . High Security . | . . . . . Max Security . | . . . . . Squads Dispatched 5 | . . . 2 3 Investigation 2 | . . . 1 1 Extermination . | . . . . . Reinforcement 3 | . . . 1 2 Assault . | . . . . . Garrison . | . . . . . Intercept . | . . . . . Searches Triggered . | . . . . . Construction Impeded 1 | . . . 1 . Haulers Reinforced . | . . . . . Active Scanning Responses . | . . . . . Cargo Convoy Interrupts . | . . . . . Stealth | -11 -10 -9 -9 -8 --------- Run | Yrd Mat Mat Min Mat Distress Signals 1 | . . . . 1 Communications Jammed . | . . . . . Distress Signals . | . . . . . Times Spotted 40 | . . 3 12 25 Peak Tracking Total 6 | . . 2 4 6 Tactical Retreats 3 | . . . . 3 Traps | -11 -10 -9 -9 -8 ------- Run | Yrd Mat Mat Min Mat Traps Triggered 1 | . . . . 1 Indirectly . | . . . . . Trap Hack Attempts . | . . . . . Triggered . | . . . . . Disarmed . | . . . . . Reprogrammed . | . . . . . Reused . | . . . . . Traps Extracted . | . . . . . Installed . | . . . . . Triggered . | . . . . . Machines | -11 -10 -9 -9 -8 ---------- Run | Yrd Mat Mat Min Mat Machines Disabled 3 | . . 1 . 2 Max in Single Turn 1 | . . 1 . 1 Machines Repaired . | . . . . . Machines Dismantled . | . . . . . Machines Sabotaged . | . . . . . Overloaded Fab Kills . | . . . . . Hacking | -11 -10 -9 -9 -8 --------- Run | Yrd Mat Mat Min Mat Machines Accessed 5 | . . 1 2 2 Terminals 2 | . . . 1 1 Fabricators . | . . . . . Repair Stations . | . . . . . Recycling Units 1 | . . . . 1 Scanalyzers 1 | . . 1 . . Garrison Access . | . . . . . Total Hacks 13 | . . 6 2 5 Successful 9 | . . 4 2 3 Failed 4 | . . 2 . 2 Catastrophic . | . . . . . Database Lockouts . | . . . . . Manual . | . . . . . Terminals 5 | . . . 1 4 Fabricators . | . . . . . Repair Stations . | . . . . . Recycling Units 1 | . . . . 1 Scanalyzers 6 | . . 6 . . Garrison Access . | . . . . . Terminal Hacks 4 | . . . 2 2 Prototype ID Bank 1 | . . . . 1 Open Door 1 | . . . 1 . Level Access Points 1 | . . . 1 . Zone Layout 1 | . . . . 1 Fabricator Hacks . | . . . . . Repair Station Hacks . | . . . . . Recycling Unit Hacks 1 | . . . . 1 Report Inventory 1 | . . . . 1 Scanalyzer 4 | . . 4 . . Insert Component 2 | . . 2 . . Analyze 2 | . . 2 . . Garrison Access Hacks . | . . . . . Unauthorized Hacks . | . . . . . Terminals . | . . . . . Fabricators . | . . . . . Repair Stations . | . . . . . Recycling Units . | . . . . . Scanalyzers . | . . . . . Garrison Access . | . . . . . Data Cores Recovered . | . . . . . Used . | . . . . . Hacking Detections 3 | . . 1 . 2 Full Trace Events . | . . . . . Feedback Events . | . . . . . Feedback Blocked . | . . . . . Robot Schematics Acquired . | . . . . . Robots Built . | . . . . . Authchips . | . . . . . Time . | . . . . . Total Robot Build Rating . | . . . . . Part Schematics Acquired 2 | . . 2 . . Parts Built . | . . . . . Authchips . | . . . . . Time . | . . . . . Total Part Build Rating . | . . . . . Parts Repaired . | . . . . . Time . | . . . . . Parts Recycled . | . . . . . Recycled Matter . | . . . . . Retrieved Matter . | . . . . . Retrieved Components . | . . . . . Parts Scanalyzed 2 | . . 2 . . Part Schematics Acquired 2 | . . 2 . . Parts Damaged 1 | . . 1 . . Bothacking | -11 -10 -9 -9 -8 ------------ Run | Yrd Mat Mat Min Mat Used RIF Installer . | . . . . . Robots Hacked . | . . . . . Non-combat . | . . . . . Combat . | . . . . . Robot Hacks Applied . | . . . . . Relay Couplers Released . | . . . . . Fabnet Peak Effective % . | . . . . . Robots Rewired . | . . . . . Allies Hacked . | . . . . . Hacks Repelled . | . . . . . Allies | -11 -10 -9 -9 -8 -------- Run | Yrd Mat Mat Min Mat Total Allies 3 | . . . 3 . Largest Group 3 | . . . 3 3 Highest-Rated Group 40 | . . . 40 40 Highest-Rated Ally 16 | . . . 16 16 Total Orders . | . . . . . Ally Attacks 14 | . . . 9 5 Total Damage 122 | . . . 61 61 Kills 4 | . . . 3 1 Allies Corrupted . | . . . . . Allies Melted . | . . . . . Intel | -11 -10 -9 -9 -8 ------- Run | Yrd Mat Mat Min Mat Robot Analysis Total . | . . . . . Derelict Logs Recovered 1 | . . . 1 . Drone Launches . | . . . . . Drone Recoveries . | . . . . . Exploration | -11 -10 -9 -9 -8 ------------- Run | Yrd Mat Mat Min Mat Turns Passed 2146 | 75 73 492 918 588 Spaces Moved 1079 | 50 46 268 500 215 Core 27 | 19 . . . 8 Treads 1019 | 31 46 268 500 174 Legs 33 | . . . . 33 Wheels . | . . . . . Hover . | . . . . . Flight . | . . . . . Fastest Speed 50 | 50 160 160 160 160 Average Speed 163 | 118 160 160 160 187 Slowest Speed 550 | 160 160 160 160 550 Overloaded Moves . | . . . . . Propulsion Burnouts . | . . . . . Robots Hopped . | . . . . . Cave-ins Triggered . | . . . . . Exploration Rate (%) 29 | 4 13 30 80 22 Regions Visited 4 Branch Regions 1 Pre-discovered Areas 1 | . . . 1 . Known Exits Taken 1 | . . . 1 . Unknown Exits Taken 3 | 1 1 1 . . Scrap Searched 1 | . . . 1 . Spaces Dug . | . . . . . Terrain Destroyed 94 | . . . 8 86 Melee . | . . . . . Projectile . | . . . . . AOE 94 | . . . 8 86 Terrain Rammed . | . . . . . Walls Destroyed . | . . . . . Machines Disabled . | . . . . . Actions | -11 -10 -9 -9 -8 --------- Run | Yrd Mat Mat Min Mat Total 1347 | 68 46 301 584 348 Wait 105 | . . . 56 49 Move 1075 | 49 45 267 499 215 Hop . | . . . . . Pick Up 39 | 10 1 11 5 12 Fast Attach . | . . . . . Attach 35 | 6 . 2 3 24 Detach 16 | . . . . 16 Swap 3 | . . 2 1 . Drop 11 | 3 . 4 1 3 Fire 58 | . . 15 14 29 Melee . | . . . . . Ram . | . . . . . Kick . | . . . . . Crush 5 | . . . 5 . Escape Stasis . | . . . . . Rewire . | . . . . . Trap . | . . . . . Miscellaneous . | . . . . . Route ------- -11/Scrapyard -10/Materials -9/Materials -9/Mines (discovered 2 exits: *Mat x2) -8/Materials (discovered 1 exit: [*Fac]) History --------- Turn | Location | Event 7 | -11/Scrapyard | Discovered new exit (range 14) 76 | -11/Scrapyard | Entered Materials 126 | -10/Materials | Discovered new exit (range 11) 149 | -10/Materials | Entered another Materials area 149 | -9/Materials | Evolved 2 slots: Utility x1, Weapon x1 521 | -9/Materials | Discovered new exit (range 11) 550 | -9/Materials | Build established: Gunner 641 | -9/Materials | Entered Mines 642 | -9/Mines | Assembled infested the area 713 | -9/Mines | Received a Rocket Launcher from a helpful Derelict 1104 | -9/Mines | Met a Derelict shopkeep closing up shop 1252 | -9/Mines | Assisted by bots powering up and referring to "LRC-V3" 1318 | -9/Mines | Build established: Tank 1452 | -9/Mines | Discovered new exit (range 10) 1468 | -9/Mines | Identified exit to Materials 1559 | -9/Mines | Entered Materials 1559 | -8/Materials | Accompanied by 3 allies 1559 | -8/Materials | Evolved 2 slots: Utility x1, Weapon x1 1712 | -8/Materials | Lost 4 allies 1975 | -8/Materials | Discovered new exit (range 13) 2014 | -8/Materials | Lost 5 parts (1p2n2w) 2147 | -8/Materials | Self-destructed Last Messages --------------- 02103_ U-05 Engineer builds a Wall. 02104_ The unstable cave ceiling collapses. 02105_ U-05 Engineer builds a Wall. 02106_ K-01 Serf collects debris. 02107_ U-05 Engineer lays Concrete. 02109_ K-01 Serf collects debris. 02110_ U-05 Engineer builds a Wall. 02113_ K-01 Serf collects debris. 02133_ U-05 Engineer builds a Wall. 02136_ K-01 Serf collects debris. 02137_ U-05 Engineer lays Concrete. 02140_ U-05 Engineer builds a Wall. 02140_ K-01 Serf collects debris. 02141_ Triggered Alarm Trap. 02141_ An alarm sounds. 02141_ ALERT: Alarm triggered, dispatching investigation squad. 02143_ U-05 Engineer builds a Wall. 02144_ U-05 Engineer lays Concrete. 02147_ K-01 Serf collects debris. Map ----- +----------------------------------------------------+ | ?????????????????????????????????????????????? | | ?????????????????????????????????????????????? | | ?????????????????????????????????????????????? | | ?????????????????????????????????????????????? | | ?????????????????????????????????????????????? | | ?????????????????????????????????????????????? | | ?????????????????????????????????????????????? | | ?????????????????????????????????????????????? | | ???????????????????????????????????????###+### | | ???????????????????????????????????##??# # | | ?????????????????????????? ?????? ??# """ # | | ?????????????????????????? #?????? ?# "Y" # | | ?????????????????????????# #?????" ?# # | | ?????????????????????????# #???"""" ## # | | ?????????????????????????# #??""""" ##" # | | ?????????????????????????# # """"" ##%""" # | | ?????????????????????????# # """ ## """ # | | ????????????????????????## u# ##* "" # | | ????????????????????????## ### # # [% # | | ?????????????????????????# ## ###### +### | | ?????????????????????????# [ #?? | | ?????????????#??????????## %#?? | | ???????????### ######### w ##### % ##? | | ?????????? # = " ##? | | ?????????????g g ## " #?? | | ???????????????? """ @ g< ; k ; #?? | | ???????????????? "Y" u g ;; ; #?? | | ????????????? #####/###;; * ; #?? | | ??????????????## ??# !# " =%" #?? | | ???????????????# !! ???# ! # """""""" #?? | | ???????????????# !?????# ### " #?? | | ???????????????# ??????# !! #?# # " #?? | | ???????????????# ??????# !! #?######## #?? | | ???????????????? ??????# #????????# #?? | | ???????????????? ??????#+######?######## #?? | | ???????????????? ?????? ???????# [ ! # #?? | | ???????????????# ?????? ???????# # #?? | | ???????????????# ????? ???????# """ + #?? | | ???????????????# ????? ????????# """ # #?? | | ???????????????# #????+##+###????# """ # #?? | | ???##########??# #??????? #????# # #?? | | #### #??# #?????? #????######## #?? | | # """ #??# #?????? #???######### #?? | | # """"" #### #?????? #??? ## #?? | | # """"" + #?????? #???""""" ## ##? | | + """"" #### #????? ! ??? """"" # #? | | # """ #??# #????? ???# """"" + #? | | # #??# #????? ????# # #? | | # ! [ #??# #???##+#######![[ # #? | | # #??# ##### ##![[ ! ## ##? | +----------------------------------------------------+ Best States ------------- Heat Dissipation 58 Energy Generation 18 Energy Capacity 150 Matter Stores 300 Matter Capacity 300 Sight Range 16 Terrain Scan Density 10 Core Shielding 20 Evasion (%) 50 Recoil Reduction 2 Offensive Hacking 10 Item Schematics ----------------- Adv. Beam Cannon | -9/Materials | Scanalyzed Hpw. Shotgun | -9/Materials | Scanalyzed Robot Schematics ------------------ None Fabricated ------------ Nothing Alien Tech Used ----------------- None Achievements -------------- None Challenges ------------ None Game ------ Seed TacticalMassSource Manual? 0 Play Time 00:15:53 Cumulative 16.1 hours Start 2025.03.02 @ 16:58:39 End 2025.03.02 @ 17:32:06 Sessions 1 Manual Loads 0 Difficulty Rogue Special Mode None Game No. 52 Rogue 52 Adventurer 0 Explorer 0 Win Type - Total 0 Types 0/0/0/0/0/0/0/0/0 Lore% 10 Gallery% 16 Achievement% 17 Wizard Run 0 Options --------- Layout 1 ASCII 0 Keyboard 0 Movement Numpad Keybinds 0 Fullscreen 2 Font 24/Smallcaps Map View 50x35 Zoom Use 0% Tactical HUD 1 Map Filters NONE Filters NONE Steam 1 RUN: 2756ed4a-6d76-4afb-a4f3-2b3e1b582927